bitfinex-derivatives/quotes_ETHF0:USTF0_20250214
["timestamp","ask_amount","ask_price","bid_price","bid_amount"]
[1739556327716,2.82828,2786.8,2786.0,3.2078]
[1739556327910,0.7176,2786.4,2786.0,3.92547]
[1739556328107,0.71773,2785.9,2785.6,0.71779]
[1739556328316,0.71773,2785.9,2784.7,0.3592]
[1739556328317,3.42757003,2786.0,2785.4,3.2078]
[1739556328512,3.42757003,2786.0,2785.2,0.7179]
[1739556328918,3.42757003,2785.7,2785.3,0.00538793]
[1739556329114,0.71787,2785.4,2785.3,0.00538793]
[1739556329314,3.2078,2785.5,2784.6,3.2078]
[1739556329522,1.0553,2785.4,2784.6,3.2078]
[1739556329822,40.8,2785.3,2785.1,0.71791]
[1739556330018,40.8,2785.3,2784.6,3.2078]
[1739556330215,40.8,2785.3,2785.0,0.71794]
[1739556330514,40.8,2785.3,2785.2,3.9257]
[1739556330712,0.00538793,2785.9,2785.2,3.2078]
[1739556331018,0.00538793,2785.9,2785.0,5.71907614]
[1739556331019,0.00538793,2785.9,2785.6,3.2078]
[1739556332307,0.71778,2785.7,2785.2,3.92569]
[1739556332510,0.00538793,2785.9,2785.2,3.2078]
[1739556332915,0.00538793,2785.9,2785.5,3.2078]
[1739556333211,0.00538793,2785.9,2785.0,7.51394614]
[1739556333212,0.00538793,2785.9,2785.8,3.2078]
[1739556333414,0.00538793,2785.9,2785.8,3.92554]
[1739556335222,0.00538793,2785.9,2785.5,3.2078]
[1739556335521,41.51775,2785.8,2785.4,0.71782]
[1739556335724,40.8,2785.8,2785.1,3.2078]
[1739556336418,0.71778,2785.7,2785.1,3.2078]
[1739556336623,40.8,2785.8,2785.5,0.7178]
[1739556336916,40.8,2785.8,2785.0,5.70907614]
[1739556336917,40.8,2785.8,2785.4,3.2078]
[1739556337120,0.71778,2785.7,2785.3,0.71785]
[1739556337324,0.71782,2785.6,2785.2,0.71789]
[1739556337623,41.7988,2785.8,2785.1,5.1688]
[1739556337920,41.7988,2785.8,2785.4,3.2078]
[1739556338114,41.7988,2785.8,2785.7,0.71777]
[1739556338315,0.9988,2785.8,2785.7,0.71777]
[1739556338721,0.9988,2785.8,2785.4,3.2078]
[1739556338925,40.8,2785.7,2785.6,0.71779]
[1739556339223,40.8,2785.7,2785.5,0.7178]
[1739556339423,40.8,2785.7,2785.4,3.2078]
[1739556340318,40.8,2785.7,2785.5,0.71782]
[1739556340718,42.59444,2785.7,2784.8,3.2078]
[1739556340914,0.71797,2784.9,2784.8,3.2078]
[1739556341132,3.2078,2785.2,2784.5,3.2078]
[1739556341422,1.0462,2785.1,2784.5,3.2078]
[1739556341628,0.9988,2785.8,2785.0,3.74107614]
[1739556341824,3.74107614,2786.9,2785.8,0.71774]
[1739556341825,3.2078,2786.9,2785.8,0.71774]
[1739556342021,1.0179,2786.8,2785.8,7.66661614]
[1739556342216,40.8,2786.7,2785.8,14.91387614]
[1739556342430,40.8,2786.7,2786.6,0.71754]
[1739556343423,40.8,2786.7,2786.5,0.71755]
[1739556344028,40.8,2786.7,2786.4,0.00538793]
[1739556344330,40.8,2786.7,2786.6,0.71754]
[1739556346530,0.00538793,2786.9,2786.5,3.2078]
[1739556346735,0.00538793,2786.9,2786.8,3.92529]
[1739556346936,0.00538793,2786.9,2786.8,5.87829]
[1739556347143,7.93e-06,2786.9,2786.8,5.87829]
[1739556347333,7.93e-06,2786.9,2786.8,11.87829]
[1739556347540,40.80000793,2786.9,2786.8,11.87829]
[1739556347742,7.93e-06,2786.9,2786.8,5.87829]
[1739556347939,7.93e-06,2786.9,2786.8,11.87829]
[1739556351041,40.8,2787.5,2786.8,11.1608]
[1739556351239,0.75076969,2789.1,2788.6,0.71702]
[1739556351443,4.2815,2789.0,2788.2,3.2078]
[1739556351639,40.8,2788.7,2788.6,0.71701]
[1739556351840,40.8,2788.7,2788.5,3.2078]
[1739556352137,40.8,2788.7,2788.6,0.71702]
[1739556353047,0.71665,2790.1,2789.2,1.79217]
[1739556353251,0.71663,2790.2,2789.4,3.2078]
[1739556353435,40.8,2790.0,2789.4,3.2078]
[1739556353742,3.2078,2789.5,2788.6,3.2078]
[1739556353942,2.0114,2789.4,2788.6,3.2078]
[1739556354240,0.00537789,2789.3,2788.6,3.2078]
[1739556354641,0.00537789,2789.3,2789.0,3.92472]
[1739556354841,0.00537789,2789.3,2789.0,3.2078]
[1739556355250,0.00537789,2789.3,2789.2,0.71687]
[1739556355448,3.2078,2790.4,2789.2,2.67587]
[1739556355648,0.71657,2790.4,2789.9,0.71669]
[1739556355943,0.71657,2790.4,2789.5,3.74107614]
[1739556355944,0.71665,2790.1,2789.6,0.71675]
[1739556356147,40.8,2790.0,2789.6,0.71674]
[1739556356346,3.2078,2790.9,2789.9,3.2078]
[1739556356555,0.71666,2790.0,2789.9,3.2078]
[1739556356743,0.71661,2790.2,2790.1,0.00537789]
[1739556357137,3.21317789,2790.7,2790.1,0.00537789]
[1739556357342,0.00537789,2790.7,2790.1,0.00537789]
[1739556357543,0.00537789,2790.7,2790.4,0.71656]
[1739556357846,0.72186789,2790.7,2790.3,0.71657]
[1739556358052,0.00537789,2790.7,2790.2,3.2078]
[1739556358349,0.71657,2790.4,2790.2,3.2078]
[1739556358545,0.00537789,2790.7,2790.1,0.00537789]
[1739556359049,1.98037789,2790.7,2790.1,0.00537789]
[1739556359255,0.71661,2790.2,2790.1,0.00537789]
[1739556359747,1.04,2790.2,2790.1,0.00537789]
[1739556359948,1.04,2790.2,2790.1,0.72201789]
[1739556360351,41.84,2790.2,2790.1,0.00537789]
[1739556360556,42.55661,2790.2,2790.1,0.00537789]
[1739556360946,41.84,2790.2,2790.1,0.00537789]
[1739556361146,41.84,2790.2,2790.1,0.72201789]
[1739556361952,42.55661,2790.2,2790.1,0.00537789]
[1739556363557,0.71679,2789.5,2789.4,3.2078]
[1739556363757,3.2078,2789.9,2789.2,0.71686]
[1739556363959,0.71681,2789.5,2789.0,3.2078]
[1739556364157,3.2078,2789.9,2789.0,3.2078]
[1739556364361,2.0225,2790.1,2789.0,3.2078]
[1739556364362,40.8,2789.4,2789.0,3.2078]
[1739556364671,5.88564,2789.3,2789.2,0.00537789]
[1739556365062,5.1688,2789.3,2788.8,0.71696]
[1739556365255,3.2078,2789.0,2788.3,3.2078]
[1739556365456,0.9956,2789.2,2788.3,3.2078]
[1739556365457,0.71703,2788.6,2788.3,3.2078]
[1739556365659,5.44273645,2789.2,2788.5,0.71704]
[1739556365660,2.0225,2789.2,2788.5,0.71704]
[1739556365957,0.71702,2788.7,2788.4,0.71706]
[1739556366151,0.71703,2788.6,2788.3,3.92488]
[1739556366356,3.2078,2789.0,2788.3,3.92488]
[1739556366357,3.2078,2789.0,2788.3,3.2078]
[1739556366664,1.96437789,2789.1,2788.3,3.2078]
[1739556366665,0.71697,2788.8,2788.3,3.2078]
[1739556366866,0.71701,2788.7,2788.3,3.2078]
[1739556367160,1.96037789,2789.1,2788.2,0.00537789]
[1739556367161,3.2078,2788.6,2788.2,0.00537789]
[1739556367362,3.2078,2788.3,2787.5,3.2078]
[1739556367552,5.1628,2788.3,2787.5,3.2078]
[1739556367758,0.71711,2788.3,2787.8,3.2078]
[1739556367960,40.8,2788.2,2788.0,0.71716]
[1739556368163,40.8,2788.2,2787.5,3.2078]
[1739556368370,0.71723,2787.8,2787.5,3.92509]
[1739556368670,0.71725,2787.7,2787.6,0.00537789]
[1739556370261,7.95,2787.7,2786.5,5.1578]
[1739556370455,1.79328,2787.5,2786.5,5.1578]
[1739556370656,0.71747,2786.9,2786.6,0.71752]
[1739556370857,8.13471732,2787.6,2786.5,3.92536]
[1739556370858,5.0012,2787.3,2786.5,3.92536]
[1739556371163,3.2078,2787.0,2786.2,3.2078]
[1739556371363,3.2078,2786.6,2785.9,3.2078]
[1739556371559,3.2078,2786.6,2785.6,3.2078]
[1739556371762,0.9988,2786.5,2785.6,3.92557]
[1739556372056,0.9988,2786.5,2785.6,3.2078]
[1739556372057,3.2078,2786.3,2785.6,3.2078]
[1739556372253,0.71773,2785.9,2785.6,3.2078]
[1739556372460,3.2078,2786.3,2785.6,3.2078]
[1739556372662,0.71771,2786.0,2785.6,3.92558]
[1739556372959,3.2078,2786.3,2785.7,0.71777]
[1739556372960,0.71768,2786.1,2785.7,0.71777]
[1739556373157,3.2078,2786.3,2785.6,3.2078]
[1739556373364,1.0303,2786.2,2785.6,3.2078]
[1739556373554,0.71773,2785.9,2785.6,3.2078]
[1739556373864,40.8,2786.0,2785.6,3.2078]
[1739556374054,0.71773,2785.9,2785.6,3.2078]
[1739556374259,40.8,2786.0,2785.6,3.2078]
[1739556374458,0.71773,2785.9,2785.6,3.2078]
[1739556374668,40.8,2786.0,2785.6,3.2078]
[1739556374863,0.71774,2785.9,2785.6,3.2078]
[1739556375264,40.8,2786.0,2785.7,0.71777]
[1739556375460,3.2078,2787.1,2785.6,3.38323072]
[1739556375668,3.2078,2788.7,2787.1,1.79353]
[1739556375869,3.92486,2788.5,2787.8,3.92501]
[1739556376062,0.9988,2788.6,2788.1,3.2078]
[1739556376366,0.9988,2788.6,2788.5,0.71705]
[1739556376567,0.29047085,2789.2,2788.4,3.2078]
[1739556376772,3.2078,2789.1,2788.4,3.2078]
[1739556376960,0.00537789,2788.8,2788.4,3.2078]
[1739556377162,0.00537789,2788.8,2788.7,3.9248]
[1739556377670,0.00537789,2788.8,2788.7,3.2078]
[1739556377868,0.72234789,2788.8,2788.7,3.2078]
[1739556378067,0.00537789,2788.8,2788.4,3.2078]
[1739556378265,3.21317789,2788.8,2788.4,3.2078]
[1739556378465,3.21317789,2788.8,2788.3,0.00537789]
[1739556378466,0.71707,2788.4,2788.3,0.00537789]
[1739556378664,6.0,2788.4,2787.5,3.2078]
[1739556378866,1.0865,2788.3,2787.6,0.71726]
[1739556379168,1.0865,2788.3,2787.5,3.2078]
[1739556379470,3.2078,2788.2,2787.5,3.2078]
[1739556379675,0.71718,2788.0,2787.5,3.9251]
[1739556379867,1.0865,2788.3,2787.8,3.2078]
[1739556380574,0.71718,2788.0,2787.5,3.92509]
[1739556380766,0.71722,2787.9,2787.5,3.2078]
[1739556381073,5.2268,2788.5,2787.7,0.71725]
[1739556381263,5.2268,2788.5,2788.0,3.2078]
[1739556381464,0.7171,2788.4,2788.0,3.2078]
[1739556381763,3.0954,2788.7,2788.0,3.2078]
[1739556381959,0.00537789,2788.8,2788.4,0.71706]
[1739556382163,0.717,2788.7,2788.3,3.92489]
[1739556382371,0.00537789,2788.8,2788.5,0.71703]
[1739556382869,0.00537789,2788.8,2788.7,0.717]
[1739556383067,0.00537789,2788.8,2788.6,3.92481]
[1739556383270,0.00537789,2788.8,2788.5,0.71703]
[1739556383570,0.00537789,2788.8,2788.7,0.717]
[1739556385070,40.8,2789.0,2788.9,0.71695]
[1739556385270,40.8,2789.0,2788.9,3.92475]
[1739556385867,0.71675,2789.7,2789.2,0.71685]
[1739556386071,0.71675,2789.7,2789.5,3.2078]
[1739556386277,40.8,2789.6,2789.5,3.2078]
[1739556386467,40.8,2789.6,2789.5,3.92459]
[1739556387781,40.8,2789.6,2789.5,3.2078]
[1739556388071,40.8,2789.6,2789.2,0.71686]
[1739556388072,0.71681,2789.5,2789.2,3.2078]
[1739556388276,40.8,2789.6,2789.2,3.2078]
[1739556388573,0.71679,2789.5,2789.2,3.2078]
[1739556388967,40.8,2789.6,2789.2,3.2078]
[1739556389171,0.71683,2789.4,2789.2,3.2078]
[1739556389370,0.7168,2789.5,2789.2,3.2078]
[1739556390176,40.8,2789.6,2789.2,3.2078]
[1739556390364,40.8,2789.6,2789.5,3.92459]
[1739556391170,0.00537789,2789.7,2789.5,3.2078]
[1739556391370,3.2078,2791.2,2789.6,1.79189]
[1739556391566,3.2078,2791.2,2790.5,3.2078]
[1739556391768,40.8,2791.1,2790.8,3.2078]
[1739556392168,40.8,2791.1,2791.0,0.71641]
[1739556392368,3.2078,2792.4,2791.0,3.92811732]
[1739556392568,0.71617,2792.0,2791.8,3.2078]
[1739556392771,40.8,2791.9,2791.8,3.2078]
[1739556392978,41.51617,2791.9,2791.8,3.59874952]
[1739556393379,41.51617,2791.9,2791.8,3.2078]
[1739556393581,41.51617,2791.9,2791.8,3.59834511]
[1739556393772,40.8,2791.9,2791.8,3.59834511]
[1739556394082,41.51617,2791.9,2791.8,3.2078]
[1739556394282,40.8,2791.9,2791.8,3.2078]
[1739556394470,40.8,2791.9,2791.8,4.82927593]
[1739556394673,40.8,2791.9,2791.8,0.40838179]
[1739556394883,41.51617,2791.9,2791.8,0.40838179]
[1739556395174,41.51617,2791.9,2791.8,0.85784815]
[1739556396178,41.51617,2791.9,2791.8,0.40838179]
[1739556397278,0.71625,2791.6,2791.5,3.2078]
[1739556397477,0.71625,2791.6,2791.5,4.17512495]
[1739556397682,0.00537789,2792.0,2791.5,4.82723953]
[1739556397884,0.71622,2791.8,2791.6,1.61934076]
[1739556398078,0.00537789,2792.0,2791.7,4.82700183]
[1739556398287,0.00537789,2792.0,2791.8,1.61856817]
[1739556398474,0.72152789,2792.0,2791.9,1.61851991]
[1739556398679,41.52152789,2792.0,2791.9,2.1171569]
[1739556398887,40.80537789,2792.0,2791.9,2.1171121]
[1739556399083,40.80537789,2792.0,2791.9,4.11210715]
[1739556399281,0.00537789,2792.0,2791.9,4.82827715]
[1739556399483,0.00537789,2792.0,2791.9,2.11710715]
[1739556399683,0.72152789,2792.0,2791.9,2.11710715]
[1739556399882,0.72152789,2792.0,2791.9,1.46580656]
[1739556400075,0.72152789,2792.0,2791.9,0.9054356]
[1739556400381,41.52152789,2792.0,2791.9,0.9054356]
[1739556400680,41.52152789,2792.0,2791.9,0.9053264]
[1739556400879,0.7162,2791.8,2791.7,3.2078]
[1739556401073,0.71628,2791.5,2791.4,0.79619906]
[1739556401271,0.71641,2791.0,2790.9,3.2078]
[1739556401475,0.71643,2790.9,2790.8,0.00537789]
[1739556401676,41.8506,2790.9,2790.4,0.99875806]
[1739556401978,41.8506,2790.9,2789.7,0.89541772]
[1739556401979,0.71679,2789.6,2789.5,3.2078]
[1739556402180,0.71677,2789.6,2789.5,3.61551891]
[1739556402378,0.71677,2789.6,2789.5,3.2078]
[1739556402579,41.51677,2789.6,2789.5,3.2078]
[1739556402882,0.71682,2789.4,2789.3,0.00537789]
[1739556403079,40.8,2789.6,2789.3,0.41382833]
[1739556403384,0.00537789,2789.8,2789.7,0.71674]
[1739556403585,0.71655,2790.5,2789.9,0.71668]
[1739556403780,40.8,2790.4,2790.0,1.06331083]
[1739556403978,0.71669,2789.9,2789.8,3.2078]
[1739556404185,0.71669,2789.9,2789.8,3.61665761]
[1739556404978,0.00537789,2790.1,2789.8,3.61665761]
[1739556405177,0.71666,2790.0,2789.9,0.40885761]
[1739556405477,0.00537789,2790.1,2789.9,1.06564537]
[1739556405782,0.00537789,2790.1,2790.0,1.0655787]
[1739556405985,0.00537789,2790.1,2790.0,1.06708769]
[1739556406373,0.00537789,2790.1,2790.0,1.62709831]
[1739556406574,0.00537789,2790.1,2790.0,3.34200176]
[1739556406779,0.00537789,2790.1,2790.0,3.33884208]
[1739556406981,0.72201789,2790.1,2790.0,3.04385292]
[1739556407285,0.00537789,2790.1,2790.0,3.04385292]
[1739556407673,0.00537789,2790.1,2790.0,3.89714692]
[1739556408082,0.00537789,2790.1,2790.0,5.73377192]
[1739556409087,1.0506,2790.9,2790.0,5.54821882]
[1739556409388,0.71648,2790.7,2790.6,3.2078]
[1739556410277,41.51648,2790.7,2790.6,5.94416464]
[1739556410687,41.51648,2790.7,2790.6,7.51771009]
[1739556411189,47.51648,2790.7,2790.6,2.68161009]
[1739556411881,41.51648,2790.7,2790.6,2.68161009]
[1739556412089,41.51648,2790.7,2790.6,2.47333657]
[1739556413491,47.51648,2790.7,2790.6,2.47333657]
[1739556414196,47.51648,2790.7,2790.6,3.52570033]
[1739556414497,41.51648,2790.7,2790.6,3.52570033]
[1739556414783,47.51648,2790.7,2790.6,3.52570033]
[1739556414984,41.51648,2790.7,2790.6,3.52570033]
[1739556415188,47.51648,2790.7,2790.6,2.47333657]
[1739556415386,46.8,2790.7,2790.4,0.42702382]
[1739556415695,3.2078,2790.6,2790.3,3.82e-06]
[1739556415988,3.2078,2790.6,2789.5,1.5679942]
[1739556415989,0.71682,2789.4,2789.3,0.00537789]
[1739556416196,1.79212,2789.3,2788.6,3.2078]
[1739556416483,44.0078,2789.2,2788.7,1.1204712]
[1739556416685,40.8,2789.2,2788.8,1.35144017]
[1739556416884,0.71693,2789.0,2788.9,0.63448017]
[1739556417084,0.71692,2789.0,2788.9,0.63448017]
[1739556417288,0.71692,2789.0,2788.9,0.63356588]
[1739556417681,40.80537789,2789.2,2789.0,0.7169]
[1739556417881,40.80537789,2789.2,2788.9,3.84136588]
[1739556417882,3.2078,2790.4,2789.1,1.75383576]
[1739556418086,0.71667,2790.0,2789.7,0.71672]
[1739556418290,0.71667,2790.0,2789.5,3.2078]
[1739556418291,3.2078,2790.8,2789.8,1.75366267]
[1739556418494,41.5165,2790.7,2790.4,0.71654]
[1739556418692,40.8,2790.7,2790.5,0.63356588]
[1739556418894,41.51648,2790.7,2790.6,0.63356588]
[1739556419194,41.51648,2790.7,2790.6,0.63229292]
[1739556419393,40.8,2790.7,2790.6,0.63229292]
[1739556419590,40.8,2790.7,2790.6,4.55660292]
[1739556420297,41.51648,2790.7,2790.6,3.84009292]
[1739556420591,49.49348,2790.7,2790.6,0.63229292]
[1739556420797,0.71656,2790.4,2790.3,0.00537789]
[1739556420997,0.71655,2790.5,2790.3,0.63811271]
[1739556421295,0.71656,2790.4,2790.3,0.00537789]
[1739556421496,42.777,2790.7,2790.3,0.00537789]
[1739556421697,0.71656,2790.4,2790.3,0.00537789]
[1739556422394,0.71656,2790.4,2789.4,3.2078]
[1739556422395,6.0,2790.4,2789.4,3.2078]
[1739556422600,5.90511732,2790.7,2789.4,3.2078]
[1739556422601,0.71678,2789.6,2789.5,1.52931926]
[1739556422901,40.8,2789.6,2789.5,2.24610926]
[1739556423290,0.71657,2790.4,2790.1,0.71662]
[1739556423497,1.79652789,2790.9,2789.5,3.9263218]
[1739556423498,1.972,2790.6,2790.2,2.08916976]
[1739556423789,0.00537789,2790.9,2790.6,0.7165]
[1739556423996,0.00537789,2790.9,2790.7,1.19294743]
[1739556424200,0.00537789,2790.9,2790.8,0.56011471]
[1739556424404,40.80537789,2790.9,2790.3,3.2078]
[1739556424602,0.71655,2790.5,2790.4,2.08909675]
[1739556425000,6.0,2790.5,2789.4,3.2078]
[1739556425299,0.71677,2789.6,2789.5,1.52971148]
[1739556425502,0.71677,2789.6,2789.0,3.2078]
[1739556425503,0.71689,2789.1,2789.0,3.2078]
[1739556425702,42.59192,2789.6,2789.0,4.73827137]
[1739556426001,0.71681,2789.5,2789.3,0.71684]
[1739556426197,40.8,2789.6,2789.0,3.2078]
[1739556426404,40.80537789,2789.6,2789.1,1.5305378]
[1739556426700,40.80537789,2789.6,2789.0,3.21317789]
[1739556426701,0.71689,2789.1,2789.0,0.00537789]
[1739556427002,0.71689,2789.1,2788.0,3.2078]
[1739556427003,1.79231,2789.0,2788.0,3.2078]
[1739556427201,0.71714,2788.2,2787.8,0.71721]
[1739556427400,3.92811732,2788.8,2787.9,1.92792506]
[1739556427401,0.71718,2788.0,2787.9,1.92792506]
[1739556427705,1.977,2788.5,2787.9,2.39619219]
[1739556428005,0.71715,2788.1,2788.0,1.03128273]
[1739556428301,0.71715,2788.1,2788.0,0.39665115]
[1739556428496,0.71713,2788.2,2788.0,0.39665115]
[1739556428697,0.71713,2788.2,2788.1,0.39665115]
[1739556429105,9.2078,2788.2,2787.0,0.4268116]
[1739556429404,3.2078,2787.4,2786.7,3.2078]
[1739556429607,0.71742,2787.1,2786.8,1.52477641]
[1739556429793,0.71742,2787.1,2786.9,1.52477641]
[1739556430001,0.71742,2787.1,2786.7,3.2078]
[1739556430195,1.974,2787.3,2786.8,0.62772565]
[1739556430395,40.8,2787.0,2786.9,0.62680736]
[1739556430605,40.8,2787.0,2786.7,3.2078]
[1739556430802,40.8,2787.0,2786.8,0.62744869]
[1739556431101,41.51745,2787.0,2786.7,3.2078]
[1739556431300,40.8,2787.0,2786.8,0.62708603]
[1739556431495,0.71748,2786.9,2786.7,3.2078]
[1739556431699,40.8,2787.0,2786.7,3.2078]
[1739556431906,0.71746,2786.9,2786.7,3.2078]
[1739556432203,40.8,2787.0,2786.7,3.2078]
[1739556432601,0.71749,2786.8,2786.7,3.2078]
[1739556432805,0.71756,2786.5,2786.4,3.2078]
[1739556433000,1.966,2786.8,2785.7,4.32929853]
[1739556433001,7.13591732,2786.7,2785.7,4.32929853]
[1739556433208,3.2078,2786.4,2785.4,3.2078]
[1739556433506,40.8,2786.1,2785.5,0.8973727]
[1739556433701,40.8,2786.1,2785.4,3.2078]
[1739556433905,0.71773,2785.9,2785.4,3.92563]
[1739556434098,40.8,2786.1,2785.4,3.2078]
[1739556434099,44.0078,2786.1,2785.4,3.2078]
[1739556434405,0.71772,2785.9,2785.4,3.2078]
[1739556434605,44.0078,2786.1,2785.5,0.71781]
[1739556434901,44.0078,2786.1,2785.4,3.2078]
[1739556435094,44.0078,2786.1,2785.4,3.92563]
[1739556435295,40.8,2786.1,2785.4,3.2078]
[1739556435905,0.71776,2785.8,2785.4,3.2078]
[1739556436109,44.0078,2786.1,2785.4,3.2078]
[1739556436298,0.71778,2785.7,2785.4,3.2078]
[1739556437099,1.959,2785.8,2785.2,0.71788]
[1739556437307,0.71778,2785.7,2785.2,0.71789]
[1739556437505,0.71778,2785.7,2785.1,3.2078]
[1739556437506,0.71782,2785.5,2785.1,3.92572]
[1739556437711,1.959,2785.8,2785.1,3.2078]
[1739556438011,0.71791,2785.2,2784.8,3.2078]
[1739556438309,1.955,2785.3,2784.8,3.2078]
[1739556438610,40.8,2785.1,2785.0,0.71793]
[1739556438805,40.8,2785.1,2785.0,3.92573]
[1739556439513,3.92811732,2785.9,2785.2,0.7179]
[1739556439713,0.71784,2785.5,2785.1,0.71791]
[1739556440008,41.51786,2785.4,2785.1,0.71791]
[1739556440210,41.51786,2785.4,2785.0,3.92573]
[1739556440410,0.71784,2785.5,2785.1,0.71791]
[1739556440612,1.953,2785.8,2785.0,3.92573]
[1739556440908,0.71782,2785.5,2785.1,0.71791]
[1739556441114,3.2078,2785.6,2785.0,3.2078]
[1739556441302,40.8,2785.7,2785.0,3.2078]
[1739556441503,0.7178,2785.6,2785.3,3.2078]
[1739556441711,1.947,2786.0,2785.0,3.2078]
[1739556442005,0.71786,2785.4,2785.1,0.71791]
[1739556442309,3.2078,2785.7,2785.0,3.2078]
[1739556442610,0.71782,2785.6,2785.3,0.71786]
[1739556442818,3.2078,2785.7,2785.0,3.2078]
[1739556443116,3.2078,2785.7,2785.3,3.2078]
[1739556443306,0.71785,2785.4,2785.3,3.2078]
[1739556443506,1.79443,2785.7,2785.0,3.2078]
[1739556443709,0.71792,2785.2,2784.7,3.2078]
[1739556443908,5.00223,2785.7,2784.7,3.2078]
[1739556443909,0.71794,2785.1,2784.7,3.2078]
[1739556444109,3.2078,2785.4,2785.2,0.71789]
[1739556444309,0.71791,2785.2,2785.0,0.71793]
[1739556444507,3.2078,2785.4,2784.7,3.2078]
[1739556444807,1.79488,2785.0,2784.0,4.2909]
[1739556445010,1.79503,2784.8,2784.0,4.2909]
[1739556445316,0.71811,2784.4,2784.0,4.2909]
[1739556445506,0.00537789,2784.7,2784.0,4.2909]
[1739556445703,0.00537789,2784.7,2784.6,0.71805]
[1739556445904,0.00537789,2784.7,2784.6,3.92585]
[1739556446312,0.00537789,2784.7,2784.6,1.27911178]
[1739556446613,0.00537789,2784.7,2784.6,3.92585]
[1739556446811,44.0078,2785.9,2784.6,11.05527146]
[1739556447116,44.0078,2785.9,2785.7,0.71775]
[1739556447317,40.8,2785.9,2785.4,3.2078]
[1739556447510,40.8,2785.9,2785.8,3.92554]
[1739556448212,40.07198,2785.9,2785.8,4.31387897]
[1739556448410,0.00537789,2786.1,2786.0,0.71769]
[1739556448608,5.72154732,2787.3,2786.0,1.00991481]
[1739556448804,5.72154732,2787.3,2785.9,0.71771]
[1739556448805,3.2078,2787.2,2785.9,0.71771]
[1739556449008,1.79379,2786.7,2785.8,3.2078]
[1739556449214,0.71776,2785.8,2785.6,0.00537789]
[1739556449413,40.8,2786.1,2785.6,0.00537789]
[1739556449610,45.9518,2786.1,2785.6,0.00537789]
[1739556449811,0.71777,2785.7,2785.6,0.00537789]
[1739556450211,45.95717789,2786.1,2785.6,0.00537789]
[1739556451115,0.71777,2785.7,2785.6,0.00537789]
[1739556451710,41.51777,2785.7,2785.6,0.00537789]
[1739556453312,1.79451,2785.6,2784.6,0.42669703]
[1739556453510,0.718,2784.8,2784.7,0.3911261]
[1739556453713,5.1498,2784.8,2784.0,0.8943]
[1739556453915,3.2078,2784.6,2784.1,0.62627024]
[1739556454221,1.942,2784.8,2784.2,0.62620411]
[1739556454419,0.71808,2784.5,2784.3,0.62620411]
[1739556454720,0.00537789,2784.6,2784.4,3.83400411]
[1739556454916,18.795,2785.3,2784.5,0.62620411]
[1739556455117,0.718,2784.8,2784.6,0.62620411]
[1739556455421,0.718,2784.8,2784.7,0.62620411]
[1739556455611,0.718,2784.8,2784.7,1.09260895]
[1739556455821,1.942,2785.0,2784.8,0.718]
[1739556456018,18.795,2785.3,2784.9,0.62620411]
[1739556456214,41.52329789,2785.2,2785.0,0.62620411]
[1739556456420,41.52327789,2785.2,2785.1,1.09260895]
[1739556456621,40.80537789,2785.2,2785.1,1.09260895]
[1739556456821,41.52327789,2785.2,2785.1,1.09260895]
[1739556457913,41.52327789,2785.2,2785.1,0.46640484]
[1739556458117,47.52327789,2785.2,2785.1,0.07671501]
[1739556458322,1.79488,2785.0,2784.0,0.89967789]
[1739556458520,0.71813,2784.3,2784.0,0.89967789]
[1739556458718,0.71813,2784.3,2784.1,0.71817]
[1739556459016,0.71814,2784.3,2784.1,0.71817]
[1739556459420,0.71811,2784.4,2784.2,0.71814]
[1739556459623,0.71815,2784.3,2784.1,0.71816]
[1739556459819,3.2078,2784.6,2784.0,0.00537789]
[1739556460026,1.942,2784.5,2784.0,0.72358789]
[1739556460221,1.941,2784.7,2784.0,0.00537789]
[1739556460531,44.98487789,2785.2,2784.7,0.71802]
[1739556460532,1.942,2784.8,2784.7,0.71802]
[1739556460717,0.71798,2784.9,2784.7,0.718]
[1739556460923,42.74837789,2785.2,2784.8,3.2078]
[1739556461127,40.80537789,2785.2,2784.8,3.2078]
[1739556461326,0.71793,2785.1,2784.8,3.2078]
[1739556461528,41.52328789,2785.2,2785.0,0.71793]
[1739556462425,40.80537789,2785.2,2785.1,0.71792]
[1739556462728,40.80537789,2785.2,2785.1,3.92572]
[1739556463122,40.80537789,2785.2,2784.8,3.92579]
[1739556463319,41.52328789,2785.2,2784.9,0.71795]
[1739556463524,40.80537789,2785.2,2785.1,0.71792]
[1739556463925,3.2078,2785.8,2785.1,3.2078]
[1739556464431,3.2078,2786.1,2785.4,3.2078]
[1739556464823,3.2078,2786.1,2785.5,0.71781]
[1739556465129,40.8,2785.7,2785.6,0.71779]
[1739556465329,40.8,2785.7,2785.6,3.2078]
[1739556465728,40.8,2785.7,2785.6,4.30153898]
[1739556466432,40.8,2785.7,2785.6,3.58374898]
[1739556466632,40.8,2785.7,2785.6,4.30153898]
[1739556467120,0.00538764,2786.1,2785.6,9.58374898]
[1739556467327,0.00538764,2786.1,2786.0,0.71769]
[1739556467530,0.00538764,2786.1,2786.0,1.09359166]
[1739556467831,0.71751,2786.7,2785.9,3.2078]
[1739556468131,40.8,2786.6,2786.3,0.71759]
[1739556468332,0.71758,2786.5,2786.4,0.37573405]
[1739556470025,3.92538,2786.5,2786.4,0.37573405]
[1739556470225,0.71758,2786.5,2786.4,0.37573405]
[1739556470426,3.92538,2786.5,2786.4,0.83922779]
[1739556470732,0.71758,2786.5,2786.4,0.83922779]
[1739556470929,3.92538,2786.5,2786.4,0.83922779]
[1739556471122,0.71774,2785.8,2785.7,0.9669]
[1739556471322,1.79398,2786.4,2785.7,0.9669]
[1739556471530,0.71768,2786.1,2785.9,0.71771]
[1739556471833,41.51769,2786.0,2785.9,0.71772]